bitfinex-derivatives/quotes_BNBF0:USTF0_20250101
["timestamp","ask_amount","ask_price","bid_price","bid_amount"]
[1735773164716,1.47366044,709.05,708.19,1.05593607]
[1735773164717,0.88965274,708.6,708.19,1.05593607]
[1735773164912,1.47366044,709.05,708.19,1.05593607]
[1735773165114,0.88959573,709.04,708.19,1.05593607]
[1735773165318,0.88959573,709.03,708.19,1.05593607]
[1735773165512,0.88959573,709.02,708.19,1.05593607]
[1735773165713,0.88959573,709.01,708.19,1.05593607]
[1735773165922,0.88959573,709.0,708.19,1.05593607]
[1735773166219,0.88959573,708.99,708.19,1.05593607]
[1735773166417,0.88959573,708.98,708.19,1.05593607]
[1735773166718,0.88959573,708.97,708.19,1.05593607]
[1735773166919,0.88959573,708.96,708.19,1.05593607]
[1735773167122,0.88959573,708.95,708.2,1.05593607]
[1735773167420,0.88959573,708.94,708.2,1.05593607]
[1735773167618,0.88959573,708.93,708.2,1.05593607]
[1735773167814,0.88959573,708.92,708.2,1.05593607]
[1735773168017,0.88959573,708.91,708.2,1.05593607]
[1735773168217,0.88959573,708.9,708.22,1.05593607]
[1735773168420,0.88959573,708.89,708.22,1.05593607]
[1735773168719,0.88959573,708.88,708.22,1.05593607]
[1735773168917,0.88959573,708.87,708.22,1.05593607]
[1735773169113,0.88959573,708.86,708.22,1.05593607]
[1735773169314,0.88959573,708.85,708.22,1.05593607]
[1735773169619,0.88959573,708.84,708.22,1.05593607]
[1735773169818,0.88959573,708.83,708.22,1.05593607]
[1735773170021,0.88959573,708.82,708.22,1.05593607]
[1735773170321,0.88959573,708.81,708.22,1.05593607]
[1735773170620,1.47366044,709.05,708.22,1.05593607]
[1735773170621,0.88959573,708.8,708.22,1.05593607]
[1735773170815,0.88959573,708.79,708.22,1.05593607]
[1735773171014,0.88959573,708.78,708.21,1.05593607]
[1735773171215,0.88959573,708.77,708.21,1.05593607]
[1735773171421,0.88959573,708.76,708.21,1.05593607]
[1735773171721,1.47366044,709.05,708.21,1.05593607]
[1735773171722,0.88959573,708.75,708.21,1.05593607]
[1735773171921,0.88959573,708.74,708.21,1.05593607]
[1735773172122,0.88959573,708.73,708.21,1.05593607]
[1735773172421,1.47366044,709.05,708.2,1.05593607]
[1735773172422,0.88968878,708.72,708.2,1.05593607]
[1735773172617,0.88968878,708.71,708.2,1.05593607]
[1735773172923,0.88968878,708.7,708.2,1.05593607]
[1735773173121,0.88968878,708.69,708.17,1.05593607]
[1735773173422,0.88968878,708.68,708.17,1.05593607]
[1735773173618,0.88968878,708.67,708.17,1.05593607]
[1735773173816,0.88968878,708.66,708.17,1.05593607]
[1735773174017,0.88968878,708.65,708.17,1.05593607]
[1735773174221,1.47366044,709.05,708.17,1.05593607]
[1735773174425,0.88974372,709.04,708.17,1.05593607]
[1735773174625,0.88974372,709.03,708.17,1.05593607]
[1735773174818,0.88974372,709.02,708.17,1.05593607]
[1735773175125,1.47366044,709.05,707.8,0.73014227]
[1735773175126,0.88977506,709.01,708.19,1.05593607]
[1735773175330,0.88977506,709.0,708.19,1.05593607]
[1735773175518,0.88977506,708.99,708.19,1.05593607]
[1735773175821,1.47366044,709.05,708.19,1.05593607]
[1735773176018,0.88981516,709.04,708.19,1.05593607]
[1735773176322,0.88981516,709.04,707.9,1.05593607]
[1735773176323,0.88981516,709.03,708.18,1.05593607]
[1735773176522,0.88981516,709.02,708.18,1.05593607]
[1735773176724,0.88981516,709.01,708.18,1.05593607]
[1735773176921,0.88981516,709.0,708.18,1.05593607]
[1735773177118,0.88981516,708.99,708.18,1.05593607]
[1735773177325,0.697,709.03,708.14,1.05593607]
[1735773177326,0.88981516,708.98,708.14,1.05593607]
[1735773177622,0.88981516,708.97,708.14,1.05593607]
[1735773177822,0.88981516,708.96,708.14,1.05593607]
[1735773178020,0.88981516,708.95,708.14,1.05593607]
[1735773178221,0.88981516,708.94,708.13,1.05593607]
[1735773178420,0.88981516,708.93,708.13,1.05593607]
[1735773178621,0.88981516,708.92,708.13,1.05593607]
[1735773178920,0.88981516,708.91,708.13,1.05593607]
[1735773179118,0.88981516,708.9,708.13,1.05593607]
[1735773179325,0.88981516,708.89,708.13,1.05593607]
[1735773179623,0.88981516,708.88,708.13,1.05593607]
[1735773179824,0.88981516,708.87,708.13,1.05593607]
[1735773180019,0.88981516,708.86,708.13,1.05593607]
[1735773180324,0.88981516,708.85,708.13,1.05593607]
[1735773180524,0.88981516,708.84,708.13,1.05593607]
[1735773180824,0.88998035,708.83,708.13,1.05593607]
[1735773181019,0.88998035,708.82,708.13,1.05593607]
[1735773181220,0.88998035,708.81,708.13,1.05593607]
[1735773181418,0.697,709.03,708.13,1.05593607]
[1735773181623,1.47379566,708.95,708.12,1.05593607]
[1735773181824,0.89003862,708.94,708.12,1.05593607]
[1735773182024,0.89003862,708.93,708.12,1.05593607]
[1735773182221,0.89003862,708.92,707.92,1.05593607]
[1735773182417,0.89003862,708.91,707.92,1.05593607]
[1735773182622,0.89003862,708.9,707.92,1.05593607]
[1735773182820,0.89003862,708.89,707.92,1.05593607]
[1735773183126,0.89003862,708.89,707.79,0.28256968]
[1735773183127,0.89003862,708.88,707.93,1.05593607]
[1735773183318,0.88981519,708.87,707.93,1.05593607]
[1735773183522,0.88981519,708.86,707.93,1.05593607]
[1735773183722,0.88981519,708.85,707.93,1.05593607]
[1735773183923,0.88981519,708.84,707.93,1.05593607]
[1735773184124,0.88981519,708.83,707.93,1.05593607]
[1735773184325,0.88981519,708.82,707.92,1.05593607]
[1735773184525,0.88981519,708.81,707.92,1.05593607]
[1735773184720,0.88981519,708.8,707.92,1.05593607]
[1735773184919,0.88981519,708.79,707.92,1.05593607]
[1735773185123,0.88981519,708.78,707.92,1.05593607]
[1735773185320,0.88981519,708.77,707.92,1.05593607]
[1735773185525,0.88981519,708.76,707.92,1.05593607]
[1735773185718,0.88981519,708.75,707.92,1.05593607]
[1735773185920,0.88981519,708.74,707.92,1.05593607]
[1735773186226,0.88981519,708.73,707.92,1.05593607]
[1735773186427,0.88981519,708.72,707.93,1.05593607]
[1735773186626,0.88981519,708.71,707.93,1.05593607]
[1735773186925,0.88981519,708.7,707.93,1.05593607]
[1735773187125,0.88981519,708.69,707.93,1.05593607]
[1735773187327,0.88981519,708.68,707.93,1.05593607]
[1735773187524,0.88981519,708.67,707.93,1.05593607]
[1735773187721,0.88981519,708.66,707.93,1.05593607]
[1735773187920,0.88981519,708.65,707.96,1.05593607]
[1735773188126,0.88981519,708.64,707.96,1.05593607]
[1735773188320,1.47379566,708.95,707.96,1.05593607]
[1735773188321,0.88981519,708.63,707.96,1.05593607]
[1735773188522,0.88981519,708.62,707.96,1.05593607]
[1735773188724,1.47379566,708.95,707.96,1.05593607]
[1735773188725,0.88981519,708.61,707.96,1.05593607]
[1735773188925,0.88981519,708.6,707.96,1.05593607]
[1735773189125,0.88981519,708.59,708.0,1.05593607]
[1735773189328,0.88981519,708.58,708.0,1.05593607]
[1735773189524,0.88981519,708.57,708.0,1.05593607]
[1735773189829,0.88981519,708.56,708.0,1.05593607]
[1735773190029,0.88981519,708.55,708.0,1.05593607]
[1735773190230,0.88981519,708.54,708.02,1.05593607]
[1735773190431,0.88981519,708.53,708.02,1.05593607]
[1735773190631,0.88981519,708.52,708.02,1.05593607]
[1735773190832,1.47379566,708.95,708.02,1.05593607]
[1735773191024,0.88924068,708.94,708.04,1.05593607]
[1735773191325,0.88924068,708.93,708.04,1.05593607]
[1735773191526,0.88924068,708.92,708.04,1.05593607]
[1735773191727,0.88924068,708.91,708.04,1.05593607]
[1735773191924,0.88924068,708.9,708.08,1.05593607]
[1735773192127,0.88924068,708.89,708.08,1.05593607]
[1735773192331,0.88920974,708.88,708.08,1.05593607]
[1735773192523,1.47379566,708.95,708.08,1.05593607]
[1735773192524,0.88920974,708.87,708.08,1.05593607]
[1735773192727,0.88920974,708.86,708.08,1.05593607]
[1735773192929,0.8891582,708.85,708.08,1.05593607]
[1735773193126,0.8891582,708.84,708.08,1.05593607]
[1735773193329,0.8891582,708.83,708.06,1.05593607]
[1735773193528,0.8891582,708.82,708.06,1.05593607]
[1735773193730,0.8891582,708.81,708.06,1.05593607]
[1735773193929,0.8891582,708.8,708.06,1.05593607]
[1735773194131,0.8891582,708.79,708.06,1.05593607]
[1735773194434,0.8891582,708.78,708.06,1.05593607]
[1735773194635,0.698,708.77,708.05,1.05593607]
[1735773194829,0.88900032,708.76,708.05,1.05593607]
[1735773195031,0.88900032,708.75,708.05,1.05593607]
[1735773195230,0.88900032,708.74,708.05,1.05593607]
[1735773195433,0.88897393,708.73,708.04,1.05593607]
[1735773195635,0.88897393,708.72,708.04,1.05593607]
[1735773195838,0.88897393,708.71,708.04,1.05593607]
[1735773196037,0.88897393,708.7,708.04,1.05593607]
[1735773196337,0.88897393,708.69,708.04,1.05593607]
[1735773196537,0.88897393,708.69,707.79,0.28256968]
[1735773196538,0.88897393,708.68,708.02,1.05593607]
[1735773196736,0.88897393,708.67,708.02,1.05593607]
[1735773196932,0.88897393,708.66,708.02,1.05593607]
[1735773197133,0.88897393,708.65,708.02,1.05593607]
[1735773197334,0.88897393,708.64,707.99,1.05593607]
[1735773197532,0.88897393,708.63,707.99,1.05593607]
[1735773197737,0.88897393,708.62,707.99,1.05593607]
[1735773197937,0.88897393,708.61,707.99,1.05593607]
[1735773198138,0.88897393,708.6,707.99,1.05593607]
[1735773198339,0.88897393,708.59,707.98,1.05593607]
[1735773198537,0.88897393,708.58,707.98,1.05593607]
[1735773198734,0.88897393,708.57,707.98,1.05593607]
[1735773198936,0.88897393,708.56,707.98,1.05593607]
[1735773199138,0.88897393,708.55,707.98,1.05593607]
[1735773199335,0.88897393,708.54,707.98,1.05593607]
[1735773199641,0.88897393,708.53,707.99,1.05593607]
[1735773199841,0.88897393,708.52,707.99,1.05593607]
[1735773200043,0.88897393,708.51,707.99,1.05593607]
[1735773200241,0.88897393,708.5,707.99,1.05593607]
[1735773200441,0.88897393,708.49,708.02,1.05593607]
[1735773200639,0.88843283,708.48,708.02,1.05593607]
[1735773200839,0.698,708.77,708.02,1.05593607]
[1735773201040,0.88843259,708.76,708.02,1.05593607]
[1735773201237,0.88843259,708.75,708.02,1.05593607]
[1735773201436,0.88839893,708.74,708.02,1.05593607]
[1735773201641,0.88839893,708.73,708.02,1.05593607]
[1735773201945,0.88839893,708.72,708.04,1.05593607]
[1735773202142,0.88836255,708.71,708.04,1.05593607]
[1735773202338,0.88836255,708.7,708.04,1.05593607]
[1735773202537,0.698,708.77,708.04,1.05593607]
[1735773202538,0.88836255,708.69,708.04,1.05593607]
[1735773202740,0.88836255,708.68,708.04,1.05593607]
[1735773202942,0.88836255,708.67,708.03,1.05593607]
[1735773203139,0.88836255,708.66,708.03,1.05593607]
[1735773203342,0.88836255,708.65,708.03,1.05593607]
[1735773203637,0.88836255,708.64,708.03,1.05593607]
[1735773203944,0.698,708.77,708.01,1.05593607]
[1735773203945,0.8882445,708.63,708.01,1.05593607]
[1735773204140,0.8882445,708.62,708.01,1.05593607]
[1735773204338,0.8882445,708.61,708.01,1.05593607]
[1735773204537,0.698,708.77,708.01,1.05593607]
[1735773204742,0.88819753,708.76,708.01,1.05593607]
[1735773205041,0.88819753,708.75,707.98,1.05593607]
[1735773205242,0.88819753,708.74,707.98,1.05593607]
[1735773205444,0.88819753,708.73,707.98,1.05593607]
[1735773205642,0.88819753,708.72,707.98,1.05593607]
[1735773205837,0.88819753,708.71,707.98,1.05593607]
[1735773206040,0.88819753,708.7,708.01,1.05593607]
[1735773206238,0.88819753,708.69,708.01,1.05593607]
[1735773206445,0.88819753,708.68,708.01,1.05593607]
[1735773206744,0.88819753,708.67,708.01,1.05593607]
[1735773206942,0.88819753,708.66,708.01,1.05593607]
[1735773207142,0.698,708.77,708.01,1.05593607]
[1735773207143,0.88819753,708.65,708.01,1.05593607]
[1735773207448,0.88819753,708.64,708.04,1.05593607]
[1735773207641,0.88817461,708.63,708.04,1.05593607]
[1735773207840,0.88817461,708.62,708.04,1.05593607]
[1735773208042,0.88817461,708.61,708.04,1.05593607]
[1735773208340,0.88817461,708.6,708.07,1.05593607]
[1735773208538,0.88817461,708.59,708.07,1.05593607]
[1735773208736,0.88817461,708.58,708.07,1.05593607]
[1735773208939,0.88817461,708.57,708.07,1.05593607]
[1735773209144,0.88817461,708.56,708.07,1.05593607]
[1735773209346,0.88817461,708.55,708.07,1.05593607]
[1735773209544,0.88817461,708.54,708.08,1.05593607]
[1735773209843,0.88817461,708.53,708.08,1.05593607]
[1735773210044,0.88817461,708.52,708.08,1.05593607]
[1735773210344,0.88817461,708.51,708.08,1.05593607]
[1735773210645,0.698,708.77,708.07,1.05593607]
[1735773210945,0.88854113,708.76,708.07,1.05593607]
[1735773211145,0.88854113,708.75,708.07,1.05593607]
[1735773211337,0.8887714,708.74,708.07,1.05593607]
[1735773211540,0.8887714,708.73,708.07,1.05593607]
[1735773211744,0.8887714,708.72,708.07,1.05593607]
[1735773211949,0.8887714,708.71,707.96,1.05593607]
[1735773212244,0.8887714,708.7,707.96,1.05593607]
[1735773212443,0.8887714,708.69,707.96,1.05593607]
[1735773212645,0.8887714,708.68,707.96,1.05593607]
[1735773212840,0.8887714,708.67,707.96,1.05593607]
[1735773213041,0.698,708.77,707.97,1.05593607]
[1735773213241,0.88877661,708.76,707.97,1.05593607]
[1735773213445,0.88877661,708.75,707.97,1.05593607]
[1735773213645,0.88877661,708.74,707.97,1.05593607]
[1735773213839,0.88877661,708.73,707.97,1.05593607]
[1735773214041,0.88877661,708.72,707.97,1.05593607]
[1735773214245,0.88877661,708.71,707.79,0.28256968]
[1735773214548,0.88877661,708.7,707.79,0.28256968]
[1735773214846,0.88877661,708.69,707.79,0.28256968]
[1735773215045,0.88877661,708.68,707.79,0.28256968]
[1735773215246,1.47418586,708.76,707.79,0.28256968]
[1735773215247,0.88877661,708.67,707.79,0.28256968]
[1735773215444,0.88877661,708.66,707.79,0.28256968]
[1735773215647,0.88877661,708.65,707.79,0.28256968]
[1735773215841,0.88877661,708.64,707.79,0.28256968]
[1735773216042,0.88877661,708.63,707.79,0.28256968]
[1735773216240,0.88877661,708.62,707.79,0.28256968]
[1735773216447,0.88877661,708.61,707.79,0.28256968]
[1735773216650,0.8884282,708.6,707.79,0.28256968]
[1735773216846,0.8884282,708.59,707.79,0.28256968]
[1735773217052,0.8884282,708.58,707.79,0.28256968]
[1735773217253,0.8884282,708.57,707.79,0.28256968]
[1735773217547,0.8884282,708.56,707.79,0.28256968]
[1735773217753,0.8884282,708.55,707.79,0.28256968]
[1735773218052,0.8884282,708.54,707.79,0.28256968]
[1735773218246,0.8884282,708.53,707.79,0.28256968]
[1735773218447,0.8884282,708.52,707.79,0.28256968]
[1735773218750,0.8884282,708.51,707.79,0.28256968]
[1735773218951,0.8884282,708.5,707.79,0.28256968]
[1735773219149,0.8884282,708.49,707.79,0.28256968]
[1735773219352,0.8884282,708.48,707.79,0.28256968]
[1735773219552,0.8884282,708.47,707.79,0.28256968]
[1735773219754,0.88745491,708.46,707.79,0.28256968]
[1735773219947,0.88745491,708.45,707.79,0.28256968]
[1735773220149,1.47418586,708.76,707.79,0.28256968]
[1735773220352,0.88745805,708.75,707.79,0.28256968]
[1735773220653,0.88745805,708.74,707.79,0.28256968]
[1735773220854,0.88745805,708.73,707.79,0.28256968]
[1735773221057,0.88745805,708.72,707.79,0.28256968]
[1735773221255,0.88745805,708.71,707.37,1.05593607]
[1735773221454,0.88745805,708.7,707.37,1.05593607]
[1735773221755,1.14739618,708.69,707.37,1.05593607]
[1735773221956,0.88745805,708.68,707.37,1.05593607]
[1735773222256,0.88745805,708.67,707.37,1.05593607]
[1735773222455,0.88745805,708.66,707.37,1.05593607]
[1735773222659,0.88745805,708.65,707.41,1.05593607]
[1735773222861,0.88745805,708.64,707.41,1.05593607]
[1735773223055,0.88745805,708.63,707.41,1.05593607]
[1735773223258,0.88745805,708.62,707.41,1.05593607]
[1735773223455,0.88745805,708.61,707.41,1.05593607]
[1735773223656,0.88745805,708.6,707.41,1.05593607]
[1735773223857,0.88745805,708.59,707.37,1.05593607]
[1735773224059,0.88745805,708.58,707.37,1.05593607]
[1735773224362,0.88745805,708.57,707.37,1.05593607]
[1735773224563,0.88745805,708.56,707.37,1.05593607]
[1735773224862,1.58645805,708.55,707.38,0.28273346]
[1735773225062,0.88745805,708.54,707.38,0.28273346]
[1735773225361,0.88745805,708.53,707.38,0.28273346]
[1735773225564,0.88745805,708.52,707.38,0.28273346]
[1735773225862,0.88627357,708.51,707.38,0.28273346]
[1735773226058,0.88627357,708.5,707.38,0.28273346]
[1735773226263,0.88627357,708.49,707.58,1.05593607]
[1735773226461,0.88627357,708.48,707.58,1.05593607]
[1735773226662,0.88627357,708.47,707.58,1.05593607]
[1735773226864,0.88627357,708.46,707.58,1.05593607]
[1735773227162,0.88627357,708.45,707.58,1.05593607]
[1735773227458,0.88627357,708.44,707.57,1.05593607]
[1735773227660,0.88627357,708.43,707.57,1.05593607]
[1735773227861,0.699,708.55,707.57,1.05593607]
[1735773227862,0.88627357,708.42,707.57,1.05593607]
[1735773228058,0.88627357,708.41,707.57,1.05593607]
[1735773228259,0.88627357,708.4,707.56,1.05593607]
[1735773228459,0.88627357,708.39,707.56,1.05593607]
[1735773228665,0.88627357,708.38,707.56,1.05593607]
[1735773228864,0.88627357,708.37,707.56,1.05593607]
[1735773229064,0.88627357,708.36,707.56,1.05593607]
[1735773229262,0.699,708.55,707.56,1.05593607]
[1735773229463,0.699,708.55,707.38,0.28273346]
[1735773229464,0.88630161,708.54,707.57,1.05593607]
[1735773229663,0.699,708.55,707.57,1.05593607]
[1735773229664,0.88630161,708.53,707.57,1.05593607]
[1735773229864,0.88630161,708.52,707.57,1.05593607]
[1735773230165,0.88630161,708.51,707.57,1.05593607]
[1735773230366,0.88630161,708.5,707.57,1.05593607]
[1735773230566,0.88630161,708.49,707.57,1.05593607]
[1735773230865,0.88630161,708.48,707.57,1.05593607]
[1735773231062,0.88630161,708.47,707.57,1.05593607]
[1735773231265,0.88630161,708.46,707.57,1.05593607]
[1735773231468,0.699,708.55,707.38,0.28273346]
[1735773231469,0.88630161,708.45,707.58,1.05593607]
[1735773231664,0.88630161,708.44,707.58,1.05593607]
[1735773231865,0.88630161,708.43,707.58,1.05593607]
[1735773232062,0.88630161,708.42,707.58,1.05593607]
[1735773232265,0.88630161,708.41,707.58,1.05593607]
[1735773232470,0.88630161,708.41,707.39,1.05593607]
[1735773232471,0.88630161,708.4,707.6,1.05593607]
[1735773232669,0.88630161,708.39,707.6,1.05593607]
[1735773232870,0.88630161,708.38,707.6,1.05593607]
[1735773233069,0.88630161,708.37,707.6,1.05593607]
[1735773233369,0.88630161,708.36,707.6,1.05593607]
[1735773233571,0.88630161,708.35,707.6,1.05593607]
[1735773233769,0.88630161,708.35,707.41,1.05593607]
[1735773233770,0.88630161,708.34,707.59,1.05593607]
[1735773233966,0.88630161,708.33,707.59,1.05593607]
[1735773234164,0.88630161,708.32,707.59,1.05593607]
[1735773234366,0.88630161,708.31,707.59,1.05593607]
[1735773234570,0.88630161,708.3,707.59,1.05593607]
[1735773234771,0.88630161,708.29,707.59,1.05593607]
[1735773234972,0.88653525,708.28,707.59,1.05593607]
[1735773235171,0.88653525,708.27,707.59,1.05593607]
[1735773235469,0.88653525,708.26,707.59,1.05593607]
[1735773235672,0.88653525,708.25,707.59,1.05593607]
[1735773235971,0.8865706,708.24,707.57,1.05593607]
[1735773236169,0.699,708.55,707.57,1.05593607]
[1735773236470,0.88667209,708.54,707.57,1.05593607]
[1735773236665,0.88667209,708.53,707.57,1.05593607]
[1735773236869,0.88667209,708.52,707.57,1.05593607]
[1735773237066,0.88667209,708.51,707.57,1.05593607]
[1735773237270,0.88667209,708.5,707.57,1.05593607]
[1735773237466,0.88667209,708.49,707.57,1.05593607]
[1735773237670,0.88667209,708.48,707.57,1.05593607]
[1735773237867,0.88667209,708.47,707.57,1.05593607]
[1735773238072,0.88669291,708.46,707.57,1.05593607]
[1735773238272,0.88669291,708.45,707.59,1.05593607]
[1735773238472,0.88669291,708.44,707.59,1.05593607]
[1735773238666,0.88675885,708.43,707.59,1.05593607]
[1735773238865,0.88675885,708.42,707.59,1.05593607]
[1735773239069,0.88675885,708.41,707.59,1.05593607]
[1735773239269,0.88675885,708.4,707.59,1.05593607]
[1735773239473,0.88675885,708.39,707.6,1.05593607]
[1735773239667,0.88675885,708.38,707.6,1.05593607]
[1735773239867,0.699,708.55,707.6,1.05593607]
[1735773239868,0.88675885,708.37,707.6,1.05593607]
[1735773240069,0.88675885,708.36,707.6,1.05593607]
[1735773240270,0.699,708.55,707.6,1.05593607]
[1735773240469,0.88681988,708.54,707.59,1.05593607]
[1735773240772,0.88681988,708.53,707.59,1.05593607]
[1735773240972,0.88682663,708.52,707.59,1.05593607]
[1735773241172,0.88682663,708.51,707.59,1.05593607]
[1735773241372,0.88682663,708.5,707.59,1.05593607]
[1735773241571,0.88682663,708.49,707.6,1.05593607]
[1735773241765,0.88682663,708.48,707.6,1.05593607]
[1735773241968,0.88682663,708.47,707.6,1.05593607]
[1735773242273,0.88682663,708.46,707.6,1.05593607]
[1735773242465,0.88682663,708.45,707.6,1.05593607]
[1735773242667,0.88682663,708.44,707.63,1.05593607]
[1735773242869,0.88682663,708.43,707.63,1.05593607]
[1735773243071,0.699,708.55,707.63,1.05593607]
[1735773243072,0.88682663,708.42,707.63,1.05593607]
[1735773243272,0.88692504,708.41,707.63,1.05593607]
[1735773243473,0.88692504,708.4,707.63,1.05593607]
[1735773243667,0.88692504,708.39,707.63,1.05593607]
[1735773243867,0.88692504,708.38,707.61,1.05593607]
[1735773244069,0.88692504,708.37,707.61,1.05593607]
[1735773244269,0.88692504,708.36,707.61,1.05593607]
[1735773244472,0.88692504,708.35,707.61,1.05593607]
[1735773244668,0.88692504,708.34,707.61,1.05593607]
[1735773244867,0.88692504,708.33,707.61,1.05593607]
[1735773245073,0.88692504,708.32,707.63,1.05593607]
[1735773245268,0.88692504,708.31,707.63,1.05593607]
[1735773245472,0.88692504,708.3,707.63,1.05593607]
[1735773245676,0.88692504,708.29,707.63,1.05593607]
[1735773245873,0.88692504,708.28,707.63,1.05593607]
[1735773246072,0.88692504,708.27,707.63,1.05593607]
[1735773246276,0.88702903,708.26,707.7,1.05593607]
[1735773246476,0.88702903,708.25,707.7,1.05593607]
[1735773246676,0.88702903,708.24,707.7,1.05593607]
[1735773246875,1.47469083,708.61,707.7,1.05593607]
[1735773247072,1.58606196,708.6,707.7,1.05593607]
[1735773247277,0.88706196,708.59,707.75,1.05593607]
[1735773247476,0.88706196,708.58,707.75,1.05593607]
[1735773247675,0.88706196,708.57,707.75,1.05593607]
[1735773247872,0.88706196,708.56,707.75,1.05593607]
[1735773248073,0.88706196,708.55,707.75,1.05593607]
[1735773248277,0.88706196,708.54,707.75,1.05593607]
[1735773248578,0.88706196,708.53,707.79,1.05593607]
[1735773248778,0.88706196,708.52,707.79,1.05593607]
[1735773248979,0.88706196,708.51,707.79,1.05593607]
[1735773249180,0.88706196,708.5,707.79,1.05593607]
[1735773249380,0.699,708.6,707.79,1.05593607]
[1735773249581,0.88724352,708.59,707.79,1.05593607]
[1735773249774,0.88724352,708.58,707.83,1.05593607]
[1735773249980,0.88724352,708.57,707.83,1.05593607]
[1735773250178,0.88724352,708.56,707.83,1.05593607]
[1735773250380,0.88724352,708.55,707.83,1.05593607]
[1735773250676,0.88724352,708.54,707.83,1.05593607]
[1735773250881,0.88724352,708.54,707.51,1.05593607]
[1735773250882,0.88724352,708.53,707.85,1.05593607]
[1735773251078,0.88724352,708.52,707.85,1.05593607]
[1735773251278,0.88724352,708.51,707.85,1.05593607]
[1735773251479,0.88724352,708.5,707.85,1.05593607]
[1735773251680,0.88724352,708.49,707.85,1.05593607]
[1735773251875,0.88724352,708.48,707.85,1.05593607]
[1735773252076,0.88724352,708.47,707.86,1.05593607]
[1735773252280,0.88724352,708.46,707.86,1.05593607]
[1735773252481,0.88724352,708.45,707.86,1.05593607]
[1735773252681,0.88724352,708.44,707.86,1.05593607]
[1735773252881,0.88724352,708.43,707.86,1.05593607]
[1735773253081,0.88724352,708.42,707.86,1.05593607]
[1735773253275,0.88724352,708.41,707.86,1.05593607]
[1735773253480,0.88724352,708.4,707.86,1.05593607]
[1735773253679,0.88724352,708.39,707.86,1.05593607]
[1735773253881,0.88724352,708.38,707.86,1.05593607]
[1735773254081,0.88724352,708.37,707.86,1.05593607]
[1735773254383,0.88724352,708.36,707.86,1.05593607]
[1735773254582,0.88724352,708.35,707.86,1.05593607]
[1735773254782,0.88724352,708.34,707.86,1.05593607]
[1735773254982,0.88724352,708.33,707.86,1.05593607]
[1735773255182,0.88724352,708.32,707.86,1.05593607]
[1735773255482,0.88724352,708.31,707.87,1.05593607]
[1735773255682,0.88724352,708.3,707.87,1.05593607]
[1735773255884,0.88724352,708.29,707.87,1.05593607]
[1735773256083,0.88814242,708.28,707.87,1.05593607]
[1735773256284,0.88814242,708.27,707.87,1.05593607]
[1735773256485,0.88814242,708.26,707.87,1.05593607]
[1735773256679,0.88814242,708.25,707.87,1.05593607]
[1735773256882,0.88814242,708.24,707.87,1.05593607]
[1735773257083,0.88814242,708.23,707.87,1.05593607]
[1735773257285,0.88814242,708.22,707.87,1.05593607]
[1735773257482,0.88814242,708.21,707.87,1.05593607]
[1735773257680,0.88814242,708.2,707.87,1.05593607]
[1735773257883,0.88814242,708.19,707.87,1.05593607]
[1735773258084,0.88814242,708.18,707.87,1.05593607]
[1735773258280,0.88814242,708.17,707.87,1.05593607]
[1735773258481,0.699,708.6,707.87,1.05593607]
[1735773258682,0.88851803,708.59,707.87,1.05593607]
[1735773258881,0.88851803,708.58,707.87,1.05593607]
[1735773259186,0.88851803,708.57,707.79,1.05593607]
[1735773259385,0.88851803,708.56,707.79,1.05593607]
[1735773259586,0.88851803,708.55,707.79,1.05593607]
[1735773259782,0.88851803,708.54,707.79,1.05593607]
[1735773259982,0.88851803,708.53,707.79,1.05593607]
[1735773260188,0.699,708.6,707.39,0.73166164]
[1735773260189,0.88851803,708.52,707.71,1.05593607]
[1735773260488,0.88851803,708.51,707.71,1.05593607]
[1735773260681,0.88851803,708.5,707.71,1.05593607]
[1735773260888,0.88851803,708.49,707.71,1.05593607]
[1735773261188,0.88851803,708.49,707.48,1.05593607]
[1735773261189,0.88851803,708.48,707.72,1.05593607]
[1735773261388,0.88851803,708.47,707.72,1.05593607]
[1735773261688,0.88851803,708.46,707.72,1.05593607]
[1735773261886,0.88851803,708.45,707.72,1.05593607]
[1735773262090,0.88851803,708.44,707.72,1.05593607]
[1735773262288,0.88851803,708.43,707.73,1.05593607]
[1735773262487,0.88851803,708.42,707.73,1.05593607]
[1735773262688,0.88851803,708.41,707.73,1.05593607]
[1735773262888,0.88851803,708.4,707.73,1.05593607]
[1735773263087,0.88851803,708.39,707.73,1.05593607]
[1735773263285,0.88851803,708.38,707.72,1.05593607]
[1735773263488,0.88851803,708.37,707.72,1.05593607]
[1735773263690,0.88851803,708.36,707.72,1.05593607]
[1735773263885,0.699,708.6,707.72,1.05593607]
[1735773263886,0.88851803,708.35,707.72,1.05593607]
[1735773264183,0.88851803,708.34,707.71,1.05593607]
[1735773264384,0.88851803,708.33,707.71,1.05593607]
[1735773264590,0.88851803,708.32,707.71,1.05593607]
[1735773264892,0.88851803,708.31,707.71,1.05593607]
[1735773265093,0.88851803,708.3,707.71,1.05593607]
[1735773265290,0.88933341,708.29,707.72,1.05593607]
[1735773265590,0.88933341,708.28,707.72,1.05593607]
[1735773265789,0.88933341,708.27,707.72,1.05593607]
[1735773265990,0.88933341,708.26,707.72,1.05593607]
[1735773266190,0.88933341,708.25,707.72,1.05593607]